[Event "4NCL Div 1 2024-25"]
[Site "England"]
[Date "2025.02.16"]
[Round "6.16"]
[White "Kalaiyalahan, Akshaya"]
[Black "Kafka, Graeme"]
[Result "1/2-1/2"]
[Annotator "ChessBase"]
[ECO "A11"]
[WhiteElo "2130"]
[BlackElo "2015"]
[PlyCount "115"]
[EventDate "2024.11.23"]
[EventType "team-tourn"]
[EventCountry "ENG"]
[SourceTitle "playchess.com"]
[Source "ChessBase"]
[SourceQuality "1"]
[TimeControl "40/6000+30:3000+30"]

1. Nf3 {[%emt 0:10:03]} d5 {[%emt 0:12:43]} 2. g3 {[%emt 0:00:10]} Nf6 {[%emt 0:00:13]} 3. Bg2 {[%emt 0:00:14]} c6 {[%emt 0:00:39]} 4. O-O {[%emt 0:00:15]} Bf5 {[%emt 0:05:08]} 5. d3 {[%emt 0:00:29]} h6 {[%emt 0:02:29]} 6. c4 {[%emt 0:01:04]} e6 {[%emt 0:00:37]} 7. cxd5 {[%emt 0:00:17]} exd5 {[%emt 0:05:07]} 8. Qb3 {[%emt 0:00:25]} Qb6 {[%emt 0:00:44]} 9. Qc2 {[%emt 0:00:48]} Be7 {[%emt 0:05:34]} 10. Nc3 {[%emt 0:00:26]} O-O {[%emt 0:20:17]} 11. e4 {[%emt 0:00:44]} Bh7 {[%emt 0:05:00]} 12. Be3 {[%emt 0:01:48]} Qd8 {[%emt 0:06:30]} 13. Rfd1 {[%emt 0:04:15]} Nbd7 {[%emt 0:06:16]} 14. exd5 {[%emt 0:06:41]} cxd5 {[%emt 0:08:35]} 15. Qb3 {[%emt 0:01:50]} Nc5 {[%emt 0:01:15]} 16. Bxc5 {[%emt 0:01:22]} Bxc5 {[%emt 0:00:08]} 17. d4 {[%emt 0:00:47]} Bb6 {[%emt 0:00:44]} 18. Ne5 {[%emt 0:05:24]} Be4 {[%emt 0:05:01]} 19. Na4 {[%emt 0:07:27]} Rc8 {[%emt 0:01:21]} 20. Nxb6 {[%emt 0:05:14]} Bc2 {[%emt 0:09:58]} 21. Qb4 {[%emt 0:00:31]} Qxb6 {[%emt 0:00:10]} 22. Qxb6 {[%emt 0:00:32]} axb6 {[%emt 0:00:07]} 23. Rdc1 {[%emt 0:01:25]} Bf5 {[%emt 0:00:36]} 24. h3 {[%emt 0:03:10]} Rxc1+ {[%emt 0:03:02]} 25. Rxc1 {[%emt 0:00:05]} Rc8 {[%emt 0:00:10]} 26. Rxc8+ {[%emt 0:00:19]} Bxc8 {[%emt 0:00:06]} 27. g4 {[%emt 0:01:20]} Kf8 {[%emt 0:01:29]} 28. f4 {[%emt 0:03:25]} g6 {[%emt 0:03:12]} 29. Kf2 {[%emt 0:01:43]} Be6 {[%emt 0:03:50]} 30. Ke3 {[%emt 0:01:22]} Ke7 {[%emt 0:00:30]} 31. Bf1 {[%emt 0:00:30]} Ne8 {[%emt 0:01:12]} 32. Bd3 {[%emt 0:00:43]} Nd6 {[%emt 0:00:15]} 33. b3 {[%emt 0:00:10]} Bd7 {[%emt 0:02:36]} 34. a4 {[%emt 0:03:29]} g5 {[%emt 0:00:21]} 35. Be2 {[%emt 0:03:46]} f6 {[%emt 0:01:08]} 36. Nd3 {[%emt 0:00:14]} b5 {[%emt 0:00:34]} 37. a5 {[%emt 0:00:27]} Bc6 {[%emt 0:00:22]} 38. Nb4 {[%emt 0:00:22]} Nc8 {[%emt 0:00:56]} 39. a6 {[%emt 0:02:02]} Na7 {[%emt 0:00:29]} 40. Bf3 {[%emt 0:08:02]} Kd6 {[%emt 0:00:14]} 41. axb7 {[%emt 0:51:11]} Bxb7 {[%emt 0:21:51]} 42. fxg5 {[%emt 0:00:00]} fxg5 {[%emt 0:03:52]} 43. Kd3 {[%emt 0:00:00]} Nc8 {[%emt 0:01:15]} 44. Kc3 {[%emt 0:00:00]} Ne7 {[%emt 0:00:17]} 45. Be2 {[%emt 0:00:00]} Ng6 {[%emt 0:03:01]} 46. Bxb5 {[%emt 0:00:00]} Nf4 {[%emt 0:00:08]} 47. Bf1 {[%emt 0:00:00]} Bc8 {[%emt 0:00:48]} 48. Nc2 {[%emt 0:00:00]} h5 {[%emt 0:00:31]} 49. Ne3 {[%emt 0:00:00]} hxg4 {[%emt 0:03:27]} 50. hxg4 {[%emt 0:00:00]} Kc6 {[%emt 0:00:35]} 51. Kb4 {[%emt 0:00:00]} Kb6 {[%emt 0:00:09]} 52. Bb5 {[%emt 0:00:00]} Be6 {[%emt 0:00:31]} 53. Bf1 {[%emt 0:00:00]} Bc8 {[%emt 0:02:11]} 54. Kc3 {[%emt 0:00:00]} Be6 {[%emt 0:01:09]} 55. Kd2 {[%emt 0:00:00]} Ka5 {[%emt 0:00:21]} 56. Kc3 {[%emt 0:00:00]} Kb6 {[%emt 0:00:16]} 57. Kb2 {[%emt 0:00:00]} Bd7 {[%emt 0:03:11]} 58. Kc3 {[%emt 0:00:00]} 1/2-1/2

[Event "4NCL Div 1 2024-25"]
[Site "England"]
[Date "2025.02.16"]
[Round "6.17"]
[White "Gormally, Daniel W"]
[Black "Panjwani, Raja"]
[Result "0-1"]
[Annotator "ChessBase"]
[ECO "E70"]
[WhiteElo "2424"]
[BlackElo "2448"]
[PlyCount "150"]
[EventDate "2024.11.23"]
[EventType "team-tourn"]
[EventCountry "ENG"]
[SourceTitle "playchess.com"]
[Source "ChessBase"]
[SourceQuality "1"]
[TimeControl "40/6000+30:3000+30"]

1. d4 {[%emt 0:10:19]} Nf6 {[%emt 0:10:10]} 2. c4 {[%emt 0:00:49]} g6 {[%emt 0:00:10]} 3. Nc3 {[%emt 0:00:29]} Bg7 {[%emt 0:00:07]} 4. e4 {[%emt 0:00:44]} d6 {[%emt 0:00:07]} 5. Bd3 {[%emt 0:00:33]} O-O {[%emt 0:00:20]} 6. Nge2 {[%emt 0:00:07]} Nc6 {[%emt 0:00:42]} 7. O-O {[%emt 0:01:30]} Nd7 {[%emt 0:00:12]} 8. Bc2 {[%emt 0:02:31]} e5 {[%emt 0:00:37]} 9. d5 {[%emt 0:00:53]} Nb4 {[%emt 0:01:00]} 10. Bb1 {[%emt 0:00:51]} a5 {[%emt 0:00:08]} 11. a3 {[%emt 0:02:56]} Na6 {[%emt 0:00:07]} 12. Be3 {[%emt 0:00:59]} Nb6 {[%emt 0:29:08]} 13. b3 {[%emt 0:00:50]} Bd7 {[%emt 0:00:24]} 14. Ba2 {[%emt 0:05:48]} f5 {[%emt 0:07:02]} 15. exf5 {[%emt 0:00:13]} gxf5 {[%emt 0:00:10]} 16. f4 {[%emt 0:00:06]} e4 {[%emt 0:58:06]} 17. Bd4 {[%emt 0:01:35]} Qe7 {[%emt 0:00:00]} 18. Qd2 {[%emt 0:10:50]} Kh8 {[%emt 0:00:00]} 19. Qe3 {[%emt 0:05:23]} Nc5 {[%emt 0:00:00]} 20. Rad1 {[%emt 0:01:58]} Rfe8 {[%emt 0:00:00]} 21. Ng3 {[%emt 0:06:31]} Bxd4 {[%emt 0:00:00]} 22. Rxd4 {[%emt 0:00:23]} Qf7 {[%emt 0:00:00]} 23. Nd1 {[%emt 0:05:32]} Rg8 {[%emt 0:00:00]} 24. Rd2 {[%emt 0:03:44]} Rg7 {[%emt 0:00:00]} 25. Qc3 {[%emt 0:01:58]} Rag8 {[%emt 0:00:00]} 26. Ne3 {[%emt 0:01:32]} h5 {[%emt 0:00:00]} 27. Nh1 {[%emt 0:02:14]} Kh7 {[%emt 0:00:00]} 28. Nf2 {[%emt 0:00:52]} Qe7 {[%emt 0:00:00]} 29. b4 {[%emt 0:05:36]} axb4 {[%emt 0:00:00]} 30. axb4 {[%emt 0:00:05]} Nba4 {[%emt 0:02:00]} 31. Qa3 {[%emt 0:07:39]} Na6 {[%emt 0:00:07]} 32. Nh3 {[%emt 0:04:34]} Qf6 {[%emt 0:00:36]} 33. Ng5+ {[%emt 0:00:30]} Rxg5 {[%emt 0:00:10]} 34. fxg5 {[%emt 0:00:04]} Qxg5 {[%emt 0:00:25]} 35. Rdf2 {[%emt 0:04:37]} Nxb4 {[%emt 0:02:37]} 36. Rxf5 {[%emt 0:09:08]} Bxf5 {[%emt 0:00:05]} 37. Rxf5 {[%emt 0:00:03]} Nc2 {[%emt 0:01:50]} 38. Rxg5 {[%emt 0:01:45]} Nxa3 {[%emt 0:00:06]} 39. Rxh5+ {[%emt 0:00:33]} Kg6 {[%emt 0:00:10]} 40. Rh4 {[%emt 0:01:39]} Re8 {[%emt 0:01:52]} 41. Bb3 {[%emt 0:52:54]} Nb2 {[%emt 0:26:58]} 42. Rf4 {[%emt 0:00:00]} b5 {[%emt 0:06:49]} 43. cxb5 {[%emt 0:00:00]} Nxb5 {[%emt 0:00:08]} 44. Bc2 {[%emt 0:00:00]} Nc3 {[%emt 0:00:14]} 45. Rf1 {[%emt 0:00:00]} Nd3 {[%emt 0:03:56]} 46. h4 {[%emt 0:00:00]} Rh8 {[%emt 0:03:39]} 47. g3 {[%emt 0:00:00]} Rb8 {[%emt 0:00:30]} 48. g4 {[%emt 0:00:00]} Rh8 {[%emt 0:04:33]} 49. h5+ {[%emt 0:00:00]} Kg5 {[%emt 0:00:59]} 50. Rf5+ {[%emt 0:00:34]} Kh4 {[%emt 0:00:05]} 51. Kh2 {[%emt 0:04:08]} Ne1 {[%emt 0:00:15]} 52. Bb3 {[%emt 0:00:27]} Nf3+ {[%emt 0:01:21]} 53. Kg2 {[%emt 0:00:05]} Nd4 {[%emt 0:00:45]} 54. Rf7 {[%emt 0:01:06]} Nxb3 {[%emt 0:00:45]} 55. Rg7 {[%emt 0:00:55]} Nd4 {[%emt 0:00:47]} 56. Kh2 {[%emt 0:00:04]} Nf3+ {[%emt 0:00:44]} 57. Kg2 {[%emt 0:00:05]} Nd4 {[%emt 0:01:01]} 58. Kh2 {[%emt 0:00:04]} Nf3+ {[%emt 0:00:39]} 59. Kg2 {[%emt 0:00:05]} Ng5 {[%emt 0:01:23]} 60. Rxc7 {[%emt 0:00:06]} Ne2 {[%emt 0:00:14]} 61. Rd7 {[%emt 0:00:51]} Nf4+ {[%emt 0:02:21]} 62. Kf2 {[%emt 0:01:01]} Rb8 {[%emt 0:01:05]} 63. Nc4 {[%emt 0:01:48]} Kxg4 {[%emt 0:02:16]} 64. h6 {[%emt 0:00:43]} Nxd5 {[%emt 0:00:49]} 65. Rxd6 {[%emt 0:00:07]} Nh3+ {[%emt 0:00:37]} 66. Ke2 {[%emt 0:00:57]} Nhf4+ {[%emt 0:00:15]} 67. Kd2 {[%emt 0:00:05]} Re8 {[%emt 0:00:29]} 68. Ne3+ {[%emt 0:02:04]} Nxe3 {[%emt 0:00:08]} 69. Kxe3 {[%emt 0:00:03]} Ng2+ {[%emt 0:00:24]} 70. Ke2 {[%emt 0:00:11]} e3 {[%emt 0:01:05]} 71. Rg6+ {[%emt 0:01:45]} Kh3 {[%emt 0:00:03]} 72. Rf6 {[%emt 0:00:29]} Re7 {[%emt 0:01:07]} 73. Rf8 {[%emt 0:00:19]} Kh4 {[%emt 0:01:22]} 74. Rf1 {[%emt 0:01:03]} Kg3 {[%emt 0:00:23]} 75. Rg1 {[%emt 0:01:02]} Rd7 {[%emt 0:00:25]} 0-1

[Event "4NCL Div 1 2024-25"]
[Site "England"]
[Date "2025.02.16"]
[Round "6.18"]
[White "Merry, Alan B"]
[Black "Ledger, Andrew J"]
[Result "1/2-1/2"]
[Annotator "ChessBase"]
[ECO "D45"]
[WhiteElo "2417"]
[BlackElo "2328"]
[PlyCount "81"]
[EventDate "2024.11.23"]
[EventType "team-tourn"]
[EventCountry "ENG"]
[SourceTitle "playchess.com"]
[Source "ChessBase"]
[SourceQuality "1"]
[TimeControl "40/6000+30:3000+30"]

1. d4 {[%emt 0:10:03]} d5 {[%emt 0:10:10]} 2. c4 {[%emt 0:00:03]} c6 {[%emt 0:00:05]} 3. e3 {[%emt 0:00:02]} Nf6 {[%emt 0:00:14]} 4. Nc3 {[%emt 0:00:04]} e6 {[%emt 0:00:47]} 5. Nf3 {[%emt 0:00:09]} Nbd7 {[%emt 0:00:18]} 6. Qc2 {[%emt 0:00:04]} Bd6 {[%emt 0:00:22]} 7. b3 {[%emt 0:00:06]} O-O {[%emt 0:00:24]} 8. Be2 {[%emt 0:00:06]} b6 {[%emt 0:00:26]} 9. O-O {[%emt 0:00:08]} Bb7 {[%emt 0:00:04]} 10. Rd1 {[%emt 0:00:05]} Qe7 {[%emt 0:01:17]} 11. Bb2 {[%emt 0:00:47]} Rad8 {[%emt 0:07:07]} 12. Rac1 {[%emt 0:01:20]} Rfe8 {[%emt 0:02:09]} 13. g3 {[%emt 0:05:40]} dxc4 {[%emt 0:05:36]} 14. bxc4 {[%emt 0:01:09]} e5 {[%emt 0:02:06]} 15. Bf1 {[%emt 0:05:33]} exd4 {[%emt 0:18:03]} 16. exd4 {[%emt 0:00:09]} Ba3 {[%emt 0:00:08]} 17. Re1 {[%emt 0:11:49]} Qb4 {[%emt 0:01:56]} 18. Bxa3 {[%emt 0:02:36]} Qxa3 {[%emt 0:00:06]} 19. Ng5 {[%emt 0:13:30]} Nf8 {[%emt 0:06:18]} 20. Rxe8 {[%emt 0:21:02]} Rxe8 {[%emt 0:01:59]} 21. c5 {[%emt 0:08:01]} h6 {[%emt 0:07:30]} 22. Nb1 {[%emt 0:06:47]} Qa5 {[%emt 0:06:58]} 23. Nf3 {[%emt 0:00:37]} Ne6 {[%emt 0:02:48]} 24. Nbd2 {[%emt 0:05:19]} bxc5 {[%emt 0:07:11]} 25. Nb3 {[%emt 0:01:16]} Qa3 {[%emt 0:02:08]} 26. dxc5 {[%emt 0:00:28]} Ba6 {[%emt 0:02:15]} 27. Bg2 {[%emt 0:01:21]} Rb8 {[%emt 0:07:19]} 28. Rd1 {[%emt 0:02:38]} Bb5 {[%emt 0:01:37]} 29. Ne5 {[%emt 0:06:44]} Qa4 {[%emt 0:08:59]} 30. h3 {[%emt 0:04:26]} Rd8 {[%emt 0:01:29]} 31. Rd6 {[%emt 0:03:02]} Qb4 {[%emt 0:04:17]} 32. Rxd8+ {[%emt 0:00:52]} Nxd8 {[%emt 0:00:03]} 33. Qd1 {[%emt 0:00:30]} Ne6 {[%emt 0:00:39]} 34. Bxc6 {[%emt 0:00:27]} Nxc5 {[%emt 0:02:25]} 35. Bxb5 {[%emt 0:00:24]} Qxb5 {[%emt 0:00:17]} 36. Qd8+ {[%emt 0:00:35]} Kh7 {[%emt 0:00:09]} 37. Nxc5 {[%emt 0:00:36]} Qxc5 {[%emt 0:00:10]} 38. Qd3+ {[%emt 0:00:29]} Kg8 {[%emt 0:00:32]} 39. Qd8+ {[%emt 0:00:17]} Kh7 {[%emt 0:00:17]} 40. Qd3+ {[%emt 0:00:19]} Kg8 {[%emt 0:00:04]} 41. Qd8+ {[%emt 0:22:21]} 1/2-1/2

[Event "4NCL Div 1 2024-25"]
[Site "England"]
[Date "2025.02.16"]
[Round "6.19"]
[White "Ansell, Simon T"]
[Black "Taylor, Martin R"]
[Result "1/2-1/2"]
[Annotator "ChessBase"]
[ECO "C50"]
[WhiteElo "2323"]
[BlackElo "2353"]
[PlyCount "59"]
[EventDate "2024.11.23"]
[EventType "team-tourn"]
[EventCountry "ENG"]
[SourceTitle "playchess.com"]
[Source "ChessBase"]
[SourceQuality "1"]
[TimeControl "40/6000+30:3000+30"]

1. e4 {[%emt 0:10:04]} e5 {[%emt 0:10:55]} 2. Nf3 {[%emt 0:00:33]} Nc6 {[%emt 0:00:08]} 3. Bc4 {[%emt 0:03:06]} Be7 {[%emt 0:00:47]} 4. d4 {[%emt 0:06:33]} exd4 {[%emt 0:00:13]} 5. Nxd4 {[%emt 0:00:21]} d6 {[%emt 0:00:21]} 6. Nc3 {[%emt 0:05:31]} Nf6 {[%emt 0:00:23]} 7. O-O {[%emt 0:03:58]} O-O {[%emt 0:00:44]} 8. Re1 {[%emt 0:02:08]} Nxd4 {[%emt 0:08:32]} 9. Qxd4 {[%emt 0:00:10]} Ng4 {[%emt 0:00:53]} 10. Qd1 {[%emt 0:14:42]} c6 {[%emt 0:19:08]} 11. Be2 {[%emt 0:01:56]} Ne5 {[%emt 0:07:17]} 12. Be3 {[%emt 0:12:30]} f5 {[%emt 0:03:47]} 13. f4 {[%emt 0:02:02]} Nf7 {[%emt 0:05:24]} 14. exf5 {[%emt 0:03:49]} Bxf5 {[%emt 0:00:28]} 15. Bd3 {[%emt 0:05:19]} Nh6 {[%emt 0:08:26]} 16. Kh1 {[%emt 0:11:40]} d5 {[%emt 0:05:00]} 17. Ne2 {[%emt 0:01:40]} Bd6 {[%emt 0:11:39]} 18. Bxf5 {[%emt 0:03:40]} Nxf5 {[%emt 0:01:09]} 19. Bf2 {[%emt 0:00:37]} Qd7 {[%emt 0:04:39]} 20. Qd3 {[%emt 0:00:28]} Qf7 {[%emt 0:04:44]} 21. b3 {[%emt 0:02:48]} Rfe8 {[%emt 0:02:59]} 22. g3 {[%emt 0:02:00]} Bc7 {[%emt 0:04:13]} 23. Ng1 {[%emt 0:02:54]} Nd6 {[%emt 0:01:51]} 24. Nf3 {[%emt 0:00:16]} Ne4 {[%emt 0:01:46]} 25. Kg2 {[%emt 0:00:09]} a5 {[%emt 0:01:29]} 26. Re2 {[%emt 0:01:58]} h6 {[%emt 0:02:38]} 27. Rf1 {[%emt 0:01:09]} Nxf2 {[%emt 0:02:27]} 28. Rfxf2 {[%emt 0:00:31]} Rxe2 {[%emt 0:01:10]} 29. Rxe2 {[%emt 0:00:13]} Re8 {[%emt 0:00:10]} 30. Rxe8+ {[%emt 0:01:48]} 1/2-1/2

[Event "4NCL Div 1 2024-25"]
[Site "England"]
[Date "2025.02.16"]
[Round "6.20"]
[White "Rogers, Jonathan W"]
[Black "Bates, Richard A"]
[Result "1/2-1/2"]
[Annotator "ChessBase"]
[ECO "A48"]
[WhiteElo "2331"]
[BlackElo "2315"]
[PlyCount "93"]
[EventDate "2024.11.23"]
[EventType "team-tourn"]
[EventCountry "ENG"]
[SourceTitle "playchess.com"]
[Source "ChessBase"]
[SourceQuality "1"]
[TimeControl "40/6000+30:3000+30"]

1. d4 {[%emt 0:10:35]} Nf6 {[%emt 0:10:11]} 2. Nf3 {[%emt 0:00:05]} g6 {[%emt 0:01:14]} 3. Bg5 {[%emt 0:00:30]} Bg7 {[%emt 0:00:07]} 4. Nbd2 {[%emt 0:00:09]} O-O {[%emt 0:04:30]} 5. c3 {[%emt 0:00:03]} d6 {[%emt 0:00:59]} 6. e4 {[%emt 0:00:20]} c5 {[%emt 0:00:53]} 7. dxc5 {[%emt 0:00:54]} dxc5 {[%emt 0:00:06]} 8. Bc4 {[%emt 0:00:07]} Nc6 {[%emt 0:01:23]} 9. Qe2 {[%emt 0:00:17]} Qc7 {[%emt 0:02:29]} 10. O-O {[%emt 0:05:40]} h6 {[%emt 0:09:42]} 11. Bxf6 {[%emt 0:02:44]} exf6 {[%emt 0:02:24]} 12. Nh4 {[%emt 0:03:27]} g5 {[%emt 0:01:11]} 13. Nf5 {[%emt 0:01:27]} Bxf5 {[%emt 0:00:47]} 14. exf5 {[%emt 0:00:05]} Rfe8 {[%emt 0:03:21]} 15. Ne4 {[%emt 0:16:27]} Qf4 {[%emt 0:23:48]} 16. Rae1 {[%emt 0:07:27]} Re7 {[%emt 0:06:27]} 17. Qe3 {[%emt 0:15:22]} Qxe3 {[%emt 0:15:00]} 18. Rxe3 {[%emt 0:00:11]} Rd8 {[%emt 0:01:25]} 19. Nxc5 {[%emt 0:05:39]} Rxe3 {[%emt 0:01:37]} 20. fxe3 {[%emt 0:03:52]} Bf8 {[%emt 0:01:19]} 21. Ne4 {[%emt 0:02:19]} Be7 {[%emt 0:00:06]} 22. Be2 {[%emt 0:01:30]} Ne5 {[%emt 0:01:28]} 23. b3 {[%emt 0:02:08]} Kf8 {[%emt 0:05:58]} 24. Rd1 {[%emt 0:00:11]} Rxd1+ {[%emt 0:00:08]} 25. Bxd1 {[%emt 0:00:04]} Ke8 {[%emt 0:00:37]} 26. Be2 {[%emt 0:13:04]} Kd7 {[%emt 0:00:27]} 27. Kf2 {[%emt 0:00:16]} Kc6 {[%emt 0:00:54]} 28. Bf3 {[%emt 0:05:26]} Kc7 {[%emt 0:00:38]} 29. Bh5 {[%emt 0:00:23]} Kd7 {[%emt 0:01:21]} 30. Ke2 {[%emt 0:00:14]} Bd8 {[%emt 0:04:23]} 31. Nc5+ {[%emt 0:06:05]} Kc6 {[%emt 0:00:27]} 32. Nd3 {[%emt 0:00:13]} Bc7 {[%emt 0:02:08]} 33. h3 {[%emt 0:04:55]} Kd6 {[%emt 0:01:42]} 34. Nxe5 {[%emt 0:02:29]} Kxe5 {[%emt 0:00:05]} 35. g4 {[%emt 0:00:03]} Ke4 {[%emt 0:02:02]} 36. Bxf7 {[%emt 0:00:09]} Bb6 {[%emt 0:00:10]} 37. c4 {[%emt 0:00:04]} Bxe3 {[%emt 0:00:10]} 38. Bd5+ {[%emt 0:00:05]} Kd4 {[%emt 0:00:09]} 39. Bxb7 {[%emt 0:00:11]} Bc1 {[%emt 0:02:37]} 40. Kd1 {[%emt 0:03:13]} Ba3 {[%emt 0:00:22]} 41. Kc2 {[%emt 0:50:05]} a5 {[%emt 0:53:01]} 42. Bc6 {[%emt 0:02:05]} Bb4 {[%emt 0:01:04]} 43. Kb2 {[%emt 0:00:06]} Bc3+ {[%emt 0:01:14]} 44. Ka3 {[%emt 0:00:00]} Bb4+ {[%emt 0:00:00]} 45. Ka4 {[%emt 0:00:00]} Kc5 {[%emt 0:00:00]} 46. Bd5 {[%emt 0:00:00]} Bd2 {[%emt 0:00:00]} 47. Ka3 {[%emt 0:00:00]} 1/2-1/2

[Event "4NCL Div 1 2024-25"]
[Site "England"]
[Date "2025.02.16"]
[Round "6.21"]
[White "Ledger, Dave J"]
[Black "Sowray, Peter J"]
[Result "0-1"]
[Annotator "ChessBase"]
[ECO "B90"]
[WhiteElo "2191"]
[BlackElo "2205"]
[PlyCount "112"]
[EventDate "2024.11.23"]
[EventType "team-tourn"]
[EventCountry "ENG"]
[SourceTitle "playchess.com"]
[Source "ChessBase"]
[SourceQuality "1"]
[TimeControl "40/6000+30:3000+30"]

1. e4 {[%emt 0:10:05]} c5 {[%emt 0:10:06]} 2. Nf3 {[%emt 0:00:32]} d6 {[%emt 0:00:07]} 3. d4 {[%emt 0:00:04]} cxd4 {[%emt 0:00:06]} 4. Nxd4 {[%emt 0:00:02]} Nf6 {[%emt 0:00:11]} 5. Nc3 {[%emt 0:00:51]} a6 {[%emt 0:00:07]} 6. Qd3 {[%emt 0:00:19]} Nc6 {[%emt 0:03:42]} 7. Bg5 {[%emt 0:06:02]} Qa5 {[%emt 0:03:22]} 8. f4 {[%emt 0:05:19]} e6 {[%emt 0:01:54]} 9. Be2 {[%emt 0:09:13]} Be7 {[%emt 0:02:55]} 10. Nb3 {[%emt 0:04:05]} Qc7 {[%emt 0:02:53]} 11. O-O-O {[%emt 0:03:17]} b5 {[%emt 0:08:24]} 12. Bxf6 {[%emt 0:02:21]} gxf6 {[%emt 0:01:08]} 13. Bh5 {[%emt 0:01:43]} b4 {[%emt 0:04:42]} 14. Ne2 {[%emt 0:03:39]} O-O {[%emt 0:05:14]} 15. Kb1 {[%emt 0:05:30]} a5 {[%emt 0:00:57]} 16. Nbd4 {[%emt 0:01:32]} Nxd4 {[%emt 0:02:51]} 17. Nxd4 {[%emt 0:00:59]} a4 {[%emt 0:03:44]} 18. f5 {[%emt 0:06:15]} Qc5 {[%emt 0:10:03]} 19. Qg3+ {[%emt 0:13:19]} Kh8 {[%emt 0:00:06]} 20. Qh3 {[%emt 0:01:06]} e5 {[%emt 0:03:06]} 21. Ne6 {[%emt 0:02:32]} Bxe6 {[%emt 0:04:04]} 22. fxe6 {[%emt 0:00:05]} Qc4 {[%emt 0:00:38]} 23. exf7 {[%emt 0:02:37]} b3 {[%emt 0:03:35]} 24. axb3 {[%emt 0:03:37]} axb3 {[%emt 0:00:09]} 25. Qxb3 {[%emt 0:01:00]} Qa6 {[%emt 0:01:35]} 26. Kc1 {[%emt 0:01:21]} f5 {[%emt 0:02:26]} 27. h4 {[%emt 0:01:06]} fxe4 {[%emt 0:03:55]} 28. Rh3 {[%emt 0:03:28]} d5 {[%emt 0:05:14]} 29. g4 {[%emt 0:07:28]} d4 {[%emt 0:02:52]} 30. Kd2 {[%emt 0:06:45]} Rfb8 {[%emt 0:07:39]} 31. Qd5 {[%emt 0:00:28]} Bb4+ {[%emt 0:00:10]} 32. c3 {[%emt 0:01:17]} dxc3+ {[%emt 0:04:09]} 33. Ke3 {[%emt 0:00:57]} Qf6 {[%emt 0:01:08]} 34. Rf1 {[%emt 0:00:43]} Qe7 {[%emt 0:01:38]} 35. bxc3 {[%emt 0:01:27]} Bxc3 {[%emt 0:00:32]} 36. g5 {[%emt 0:01:30]} Ra4 {[%emt 0:01:33]} 37. Rf6 {[%emt 0:01:32]} Qa7+ {[%emt 0:00:54]} 38. Ke2 {[%emt 0:00:35]} Ra2+ {[%emt 0:02:02]} 39. Kf1 {[%emt 0:00:08]} Ra1+ {[%emt 0:04:08]} 40. Bd1 {[%emt 0:00:20]} Bb4 {[%emt 0:01:02]} 41. Rb3 {[%emt 0:34:42]} Bf8 {[%emt 0:22:23]} 42. Rxb8 {[%emt 0:00:29]} Qxb8 {[%emt 0:00:06]} 43. Kg2 {[%emt 0:01:57]} Qb2+ {[%emt 0:03:51]} 44. Rf2 {[%emt 0:00:37]} Qb8 {[%emt 0:03:19]} 45. Bc2 {[%emt 0:03:04]} Re1 {[%emt 0:06:00]} 46. Bxe4 {[%emt 0:03:03]} Qd6 {[%emt 0:02:04]} 47. h5 {[%emt 0:03:03]} Qxd5 {[%emt 0:03:35]} 48. Bxd5 {[%emt 0:00:05]} h6 {[%emt 0:00:03]} 49. gxh6 {[%emt 0:01:22]} Rd1 {[%emt 0:01:41]} 50. Be6 {[%emt 0:03:11]} e4 {[%emt 0:03:47]} 51. Rf6 {[%emt 0:00:43]} e3 {[%emt 0:02:47]} 52. Bg4 {[%emt 0:00:36]} Rd6 {[%emt 0:03:03]} 53. Rf5 {[%emt 0:00:36]} Rxh6 {[%emt 0:00:54]} 54. Rg5 {[%emt 0:02:44]} Bg7 {[%emt 0:00:15]} 55. Re5 {[%emt 0:00:31]} Rf6 {[%emt 0:00:52]} 56. Be6 {[%emt 0:01:24]} Rf2+ {[%emt 0:00:11]} 0-1

[Event "4NCL Div 1 2024-25"]
[Site "England"]
[Date "2025.02.16"]
[Round "6.22"]
[White "Zhao, George"]
[Black "Nelson, Jonathan P"]
[Result "0-1"]
[Annotator "ChessBase"]
[ECO "E68"]
[WhiteElo "2233"]
[BlackElo "2098"]
[PlyCount "72"]
[EventDate "2024.11.23"]
[EventType "team-tourn"]
[EventCountry "ENG"]
[SourceTitle "playchess.com"]
[Source "ChessBase"]
[SourceQuality "1"]
[TimeControl "40/6000+30:3000+30"]

1. d4 {[%emt 0:10:07]} d6 {[%emt 0:10:16]} 2. Nf3 {[%emt 0:01:39]} Nd7 {[%emt 0:01:57]} 3. c4 {[%emt 0:02:58]} Ngf6 {[%emt 0:00:44]} 4. Nc3 {[%emt 0:00:17]} g6 {[%emt 0:01:00]} 5. g3 {[%emt 0:02:06]} Bg7 {[%emt 0:00:31]} 6. Bg2 {[%emt 0:00:57]} O-O {[%emt 0:00:10]} 7. O-O {[%emt 0:00:12]} e5 {[%emt 0:00:25]} 8. e4 {[%emt 0:00:23]} exd4 {[%emt 0:01:22]} 9. Nxd4 {[%emt 0:00:40]} Re8 {[%emt 0:00:07]} 10. h3 {[%emt 0:04:21]} Nc5 {[%emt 0:00:39]} 11. Re1 {[%emt 0:00:14]} Bd7 {[%emt 0:00:07]} 12. b4 {[%emt 0:04:45]} Ne6 {[%emt 0:03:20]} 13. Nb3 {[%emt 0:04:52]} h6 {[%emt 0:07:17]} 14. Bb2 {[%emt 0:04:57]} Ng5 {[%emt 0:04:27]} 15. Kh2 {[%emt 0:09:39]} Nfxe4 {[%emt 0:10:27]} 16. Nxe4 {[%emt 0:00:11]} Bxb2 {[%emt 0:00:11]} 17. Rb1 {[%emt 0:00:21]} Bg7 {[%emt 0:00:25]} 18. c5 {[%emt 0:16:12]} Bf5 {[%emt 0:24:38]} 19. Nxg5 {[%emt 0:06:47]} Rxe1 {[%emt 0:02:53]} 20. Qxe1 {[%emt 0:00:17]} Bxb1 {[%emt 0:00:25]} 21. Nxf7 {[%emt 0:00:22]} Kxf7 {[%emt 0:00:19]} 22. Bd5+ {[%emt 0:06:44]} Kf8 {[%emt 0:00:32]} 23. Qe6 {[%emt 0:01:13]} Qf6 {[%emt 0:01:31]} 24. Qg8+ {[%emt 0:00:10]} Ke7 {[%emt 0:00:05]} 25. cxd6+ {[%emt 0:00:03]} cxd6 {[%emt 0:06:15]} 26. Qxa8 {[%emt 0:00:32]} Qxf2+ {[%emt 0:00:05]} 27. Kh1 {[%emt 0:00:18]} Qf1+ {[%emt 0:00:14]} 28. Kh2 {[%emt 0:00:35]} Qe2+ {[%emt 0:00:08]} 29. Kg1 {[%emt 0:01:19]} Qd1+ {[%emt 0:00:16]} 30. Kh2 {[%emt 0:00:05]} Qxd5 {[%emt 0:00:27]} 31. Qxa7 {[%emt 0:00:21]} Qf3 {[%emt 0:11:43]} 32. Qb6 {[%emt 0:01:19]} Kf7 {[%emt 0:01:49]} 33. h4 {[%emt 0:01:18]} h5 {[%emt 0:04:07]} 34. Na5 {[%emt 0:01:52]} Qe2+ {[%emt 0:01:04]} 35. Kg1 {[%emt 0:00:18]} Qd1+ {[%emt 0:00:06]} 36. Kg2 {[%emt 0:00:46]} Be4+ {[%emt 0:00:34]} 0-1